Cogmind - Beta 11.1 @@@ ROGUE MODE // 2022.11.14 @ 01:56:49 Player: deadnoob Result: Destroyed self via exploding Fusion Modulator Performance ------------- Evolutions (0) 0 Regions Visited (1) 200 Robots Destroyed (38) 190 Value Destroyed (812) 812 Prototype IDs (6) 120 Alien Tech Used (0) 0 Bonus (8) 8 TOTAL SCORE: 1330 Bonus ------- High Alert Combat Kills 8 Cogmind --------- Core Integrity 0/250 Matter 277/300 Energy 125/125 System Corruption 2% Temperature Cool (24) Movement Walking (120) Location -10/Materials Parts ------- > --- POWER (1) -------- Light Ion Engine > --- PROPULSION (2) --- Aluminum Leg Aluminum Leg > --- UTILITY (2) ------ Medium Storage Unit Core Shielding > --- WEAPON (2) ------- Mining Claw > --- INVENTORY (10) --- Light Ion Engine Aluminum Leg Aluminum Leg Large Storage Unit Core Shielding Assault Rifle Assault Rifle Assault Rifle Light Cannon Light Cannon Peak State ------------ > --- POWER ------------ Light Nuclear Core > --- PROPULSION ------- Aluminum Leg Aluminum Leg > --- UTILITY ---------- Medium Storage Unit Improved Terrain Scanner > --- WEAPON ----------- Assault Rifle Assault Rifle > --- INVENTORY -------- Light Ion Engine Light Ion Engine Aluminum Leg Aluminum Leg Wheel Flight Unit Flight Unit Large Storage Unit Core Shielding Assault Rifle [Rating: 12] Favorites ----------- Power Light Nuclear Core Engine Light Ion Engine Power Core Light Nuclear Core Propulsion Aluminum Leg Leg Aluminum Leg Utility Medium Storage Unit Device Improved Heat Sink Storage Medium Storage Unit Protection Core Shielding Weapon Assault Rifle Ballistic Gun Assault Rifle Ballistic Cannon Light Cannon Slashing Weapon Mining Claw Build | -11 -10 ------- Run | Scr Mat Slots Evolved . | . . Power . | . . Propulsion . | . . Utility . | . . Weapon . | . . Parts Attached 17 | . 17 Power 2 | . 2 Engine 1 | . 1 Core 1 | . 1 Reactor . | . . Propulsion 4 | . 4 Treads . | . . Leg 4 | . 4 Wheel . | . . Hover . | . . Flight . | . . Utility 5 | . 5 Device 3 | . 3 Storage 1 | . 1 Processor . | . . Hackware . | . . Protection 1 | . 1 Artifact . | . . Weapon 6 | . 6 Energy Gun . | . . Energy Cannon . | . . Ballistic Gun 3 | . 3 Ballistic Cannon 2 | . 2 Launcher . | . . Special Weapon . | . . Impact Weapon . | . . Slashing Weapon 1 | . 1 Piercing Weapon . | . . Special Melee Weapon . | . . Unidentified Prototypes . | . . Parts Lost 5 | . 5 Power 1 | . 1 Propulsion 1 | . 1 Utility . | . . Weapon 3 | . 3 Highest Loss Streak 1 | . 1 To Critical Strikes . | . . Average Slot Usage (%) 98 | . 98 Engine 4 | . 4 Core 8 | . 8 Leg 27 | . 27 Device 6 | . 6 Storage 14 | . 14 Protection 6 | . 6 Ballistic Gun 19 | . 19 Ballistic Cannon 3 | . 3 Slashing Weapon 3 | . 3 Naked Turns . | . . Heaviest Build 21 | 12 21 Greatest Support 20 | 20 20 Greatest Overweight (x) 1 | . 1 Average Overweight (x) . | . . Largest Inventory Capacity 10 | . 10 Average Capacity 9 | . 9 Most Carried 10 | . 10 Average Carried 9 | . 9 Final Capacity 10 | 8 10 Final Carried 10 | 6 10 Class Distribution -------------------- 97% | Mutant Dominant Class ---------------- Mutant | -10/Materials Resources | -11 -10 ----------- Run | Scr Mat Matter Collected 790 | 194 596 Remotely 10 | . 10 Salvage Created 1296 | . 1296 Parts 95 | . 95 Haulers Intercepted 2 | . 2 Recyclers Shooed 2 | . 2 Parts Field Recycled . | . . Retrieved Matter . | . . Parts Self-Destructed . | . . Prevented . | . . Kills | -11 -10 ------- Run | Scr Mat Combat Hostiles Destroyed 23 | . 23 Melee 2 | . 2 Guns 20 | . 20 AOE 1 | . 1 Classes Destroyed 8 | . 8 Worker 4 | . 4 Tunneler 2 | . 2 Hauler 2 | . 2 Recycler 3 | . 3 Mechanic 1 | . 1 Watcher 3 | . 3 Swarmer 6 | . 6 Grunt 17 | . 17 Best Kill Streak 7 | . 7 Combat Bots Only 6 | . 6 Max Kills in Single Turn 1 | . 1 Gunslinging . | . . Exploded 1 | . 1 Melee 1 | . 1 Uniques/NPCs Destroyed . | . . Combat | -11 -10 -------- Run | Scr Mat Damage Taken 1151 | . 1151 Core 281 | . 281 Absorbed by Shields . | . . Redirected to Shielding 6 | . 6 Regen/Repaired (Parts) 67 | . 67 Core Remaining (%) 100 | 100 . Volleys Fired 71 | . 71 Largest 2 | . 2 Hottest 55 | . 55 Shots Fired 141 | . 141 Gun 139 | . 139 Cannon 2 | . 2 Launcher . | . . Special . | . . Kinetic 141 | . 141 Thermal . | . . Explosive . | . . Electromagnetic . | . . Robot Hit Streak 11 | . 11 Robot Miss Streak 4 | . 4 Penetration Max . | . . Secondary Targets 1 | . 1 Max Gunslinging Chain 1 | . 1 Shots Hit Robots 104 | . 104 Core Hits 52 | . 52 Critical Kills . | . . Critical Parts Destroyed . | . . Critical Strikes . | . . Melee Attacks 26 | . 26 Impact . | . . Slashing 26 | . 26 Piercing . | . . Sneak Attacks 10 | . 10 Combat Hostiles 1 | . 1 Follow-up Attacks . | . . Damage Inflicted 1834 | . 1834 Guns 1128 | . 1128 Cannons . | . . Explosions 88 | . 88 Melee 615 | . 615 Ramming 3 | . 3 Kinetic 1128 | . 1128 Thermal . | . . Explosive 88 | . 88 Electromagnetic . | . . Impact . | . . Slashing 615 | . 615 Piercing . | . . Highest Corruption 2 | . 2 Average Corruption 2 | . 2 Corruption Purged . | . . Corruption Blocked . | . . Effects 26 | . 26 Message Errors 6 | . 6 Matter Fused 6 | . 6 Heat Flow Errors 3 | . 3 Data Loss (minor) 5 | . 5 Data Loss (major) 5 | . 5 Alerts 1 | . 1 Overload Shots . | . . Overflow Damage 138 | . 138 Projectiles . | . . Explosions 115 | . 115 Melee 23 | . 23 Knockbacks . | . . Impact . | . . Kinetic . | . . Secondary . | . . Self-Inflicted Damage 284 | . 284 Shots 3 | . 3 Rammed . | . . Targets Rammed 2 | . 2 Kicked 2 | . 2 Crushed . | . . Highest Temperature 283 | . 283 Average Temperature 84 | . 84 Received Heat Transfer 321 | . 321 Effects 2 | . 2 Interference 2 | . 2 Siege Activations . | . . Robots Corrupted . | . . Combat Hostiles . | . . Parts Fried 1 | . 1 Impact Corruptions . | . . Robots Melted . | . . Combat Hostiles . | . . Parts Melted . | . . Heat Transferred . | . . Parts Sabotaged . | . . Parts Stolen . | . . Parts Stripped . | . . Power Chain Reactions . | . . Missiles Intercepted . | . . Alert | -11 -10 ------- Run | Scr Mat Peak Influence 438 | . 438 Initial . | . . Average 308 | . 308 Maximum Alert Level 2 | . 2 Low Security (%) 8 | . 8 Level 1 81 | . 81 Level 2 9 | . 9 Level 3 . | . . Level 4 . | . . Level 5 . | . . High Security . | . . Max Security . | . . Squads Dispatched 8 | . 8 Investigation 8 | . 8 Extermination . | . . Reinforcement . | . . Assault . | . . Garrison . | . . Intercept . | . . Searches Triggered . | . . Construction Impeded . | . . Haulers Reinforced . | . . Active Scanning Responses . | . . Cargo Convoy Interrupts . | . . Stealth | -11 -10 --------- Run | Scr Mat Distress Signals 2 | . 2 Communications Jammed . | . . Distress Signals . | . . Times Spotted 38 | . 38 Peak Tracking Total 4 | . 4 Tactical Retreats 3 | . 3 Traps | -11 -10 ------- Run | Scr Mat Traps Triggered 5 | . 5 Indirectly . | . . Trap Hack Attempts . | . . Triggered . | . . Disarmed . | . . Reprogrammed 10 | . 10 Reused 2 | . 2 Traps Extracted . | . . Installed . | . . Triggered 2 | . 2 Machines | -11 -10 ---------- Run | Scr Mat Machines Disabled 6 | . 6 Max in Single Turn 3 | . 3 Machines Sabotaged . | . . Garrisons Compromised . | . . Overloaded Fab Kills . | . . Hacking | -11 -10 --------- Run | Scr Mat Machines Accessed 11 | . 11 Terminals 8 | . 8 Fabricators . | . . Repair Stations 1 | . 1 Recycling Units 2 | . 2 Scanalyzers . | . . Garrison Access . | . . Total Hacks 50 | . 50 Successful 26 | . 26 Failed 23 | . 23 Catastrophic 1 | . 1 Database Lockouts 1 | . 1 Manual 21 | . 21 Terminals 39 | . 39 Fabricators . | . . Repair Stations 4 | . 4 Recycling Units 7 | . 7 Scanalyzers . | . . Garrison Access . | . . Terminal Hacks 17 | . 17 Robot Analysis 1 | . 1 Prototype ID Bank 4 | . 4 Branch Access Points 1 | . 1 Emergency Access Points 1 | . 1 Alert Level 1 | . 1 Locate Traps 1 | . 1 Reprogram Traps 3 | . 3 Patrol Status 1 | . 1 Investigation Status 1 | . 1 Hauler Manifests 1 | . 1 Zone Layout 2 | . 2 Fabricator Hacks . | . . Repair Station Hacks 3 | . 3 Scan Component 2 | . 2 Repair 1 | . 1 Recycling Unit Hacks . | . . Scanalyzer . | . . Garrison Access Hacks . | . . Unauthorized Hacks 6 | . 6 Terminals 1 | . 1 Track 1 | . 1 Fabricators . | . . Repair Stations 1 | . 1 Mechanics 1 | . 1 Recycling Units 4 | . 4 Mask 2 | . 2 Tunnel 2 | . 2 Scanalyzers . | . . Garrison Access . | . . Data Cores Recovered . | . . Used . | . . Hacking Detections 10 | . 10 Full Trace Events 9 | . 9 Feedback Events . | . . Feedback Blocked . | . . Robot Schematics Acquired . | . . Robots Built . | . . Authchips . | . . Time . | . . Total Robot Build Rating . | . . Part Schematics Acquired . | . . Parts Built . | . . Authchips . | . . Time . | . . Total Part Build Rating . | . . Parts Repaired 1 | . 1 Time 26 | . 26 Parts Recycled . | . . Recycled Matter . | . . Retrieved Matter . | . . Retrieved Components . | . . Parts Scanalyzed . | . . Part Schematics Acquired . | . . Parts Damaged . | . . Bothacking | -11 -10 ------------ Run | Scr Mat Used RIF Installer . | . . Robots Hacked . | . . Non-combat . | . . Combat . | . . Robot Hacks Applied . | . . Relay Couplers Released . | . . Fabnet Peak Effective % . | . . Robots Rewired . | . . Allies Hacked . | . . Hacks Repelled . | . . Allies | -11 -10 -------- Run | Scr Mat Total Allies . | . . Largest Group . | . . Highest-Rated Group . | . . Highest-Rated Ally . | . . Total Orders . | . . Ally Attacks . | . . Total Damage . | . . Kills . | . . Allies Corrupted . | . . Allies Melted . | . . Intel | -11 -10 ------- Run | Scr Mat Robot Analysis Total 1 | . 1 Derelict Logs Recovered . | . . Drone Launches . | . . Drone Recoveries . | . . Exploration | -11 -10 ------------- Run | Scr Mat Turns Passed 2421 | . 2421 Spaces Moved 1232 | 1 1231 Core . | . . Treads . | . . Legs 1232 | 1 1231 Wheels . | . . Hover . | . . Flight . | . . Fastest Speed 120 | 120 120 Average Speed 140 | 120 140 Slowest Speed 190 | 120 190 Overloaded Moves . | . . Propulsion Burnouts . | . . Robots Hopped . | . . Cave-ins Triggered . | . . Exploration Rate (%) 50 | 1 99 Regions Visited 1 Branch Regions . Pre-discovered Areas 2 | . 2 Known Exits Taken . | . . Unknown Exits Taken 1 | 1 . Scrap Searched . | . . Spaces Dug . | . . Terrain Destroyed 25 | . 25 Melee . | . . Projectile . | . . AOE 25 | . 25 Terrain Rammed . | . . Walls Destroyed . | . . Machines Disabled . | . . Actions | -11 -10 --------- Run | Scr Mat Total 1733 | . 1733 Wait 354 | . 354 Move 1231 | . 1231 Hop . | . . Pick Up 12 | . 12 Fast Attach 10 | . 10 Attach 2 | . 2 Detach 4 | . 4 Swap 5 | . 5 Drop 16 | . 16 Fire 71 | . 71 Melee 26 | . 26 Ram . | . . Kick 2 | . 2 Crush . | . . Escape Stasis . | . . Rewire . | . . Trap . | . . Miscellaneous . | . . Route ------- -11/Scrapyard -10/Materials (discovered 4 exits: [*Mat x3] / *Min) History --------- Turn | Location | Event 1 | -11/Scrapyard | Discovered new exit (range 0) 1 | -11/Scrapyard | Entered Materials 178 | -10/Materials | Discovered new exit (range 21) 301 | -10/Materials | Build established: Mutant 316 | -10/Materials | Central database locked down 426 | -10/Materials | Discovered new exit (range 17) 535 | -10/Materials | Core integrity fell below 50% 638 | -10/Materials | Discovered new exit (range 16) 1305 | -10/Materials | Identified exit to Mines 1361 | -10/Materials | Discovered new exit (range 11) 2150 | -10/Materials | Repaired Assault Rifle 2422 | -10/Materials | Destroyed self via exploding Fusion Modulator Last Messages --------------- Time: 26 >>Repair Repairing Assault Rifle... ETC: 26 02150_ Repair station completes Assault Rifle repairs. 02151_ Connecting with Repair Station... >>Scan(Aluminum Leg) Scanning Aluminum Leg... Ready to Repair: Aluminum Leg Rating: 1 Time: 26 02179_ System corrupted: Substantial component data lost. 02297_ YS,GAIMFRH>BKZJUV0 02OGK2MSUHF 02372_ Atomic Centrifuge disabled. 02373_ System corrupted: Substantial component data lost. 02384_ Atomic Centrifuge disabled. 02422_ Fusion Modulator explodes. 02422_ Assault Rifle destroyed. 02422_ Destroyed Assault Rifle. Map ----- +----------------------------------------------------+ | ????????????????????# ]%] # #?????????? | | ????????????????????#% # #?????????? | | ????????###########?# % ###########?????????? | | ????????# #?# ^^^#??????#??#?????????? | | ????????# """ """ #?# #??????#??#?????????? | | ?????#### " " """ #?# #???????????????????? | | ?????#""" " "" #?# ####?????#????#?????? | | ?????#"R #?# #???????????????#? | | ?????#""" #?#% #????????????????? | | ?????#### #?# #?????#?????###### | | ????????# #?# % #??????????## = | | ????????####+######?# #???????????# | | ?????????# ###### #???????????# | | ?????????# #???#???????# """ | | ?????????# T ^ #?#??#??????# """ | | ?????????# #??########## """ | | ?????????# ##### ##### !! ##+### | | ?????????##########; %! % # | | ??????????# ; = > # | | ??????##### """ ; # | | ??????# # """ #####" "## # | | ??????# + """ ; ;#???#" |"! "## # | | ??????# # ; ;#???#"""""""## # | | ??????# # """ ; ;############## # | | ??????# # """ ; ; T ######### # | | ??????# # """ ; @ # # ! # # | | ####### # ; # """# # | | # """ # %########## # """# + | | # "Y"%#[ %* + """# # | | # ! #%*% ! ^ # #= # | | # ** +=!%= # ###+##### | | # """ # %########## " ######### #???#! | | # """!# # #???# T # ## #???#! | | # """ # #[[[ #???# " + """ ## #???## ! | | ####### % #[[[ #???# %# """ ## #????#### | | ??????# #[[[ #???# # """ ##=#?????#?? | | ??????# # ######+### # % %+ [#???????? | | ??????# + "" ##= # # !####???????# | | ####### # "T ## + ##"T"###?##?????##? | | # T # # "" ## # ######??#??######## | | # # # ########## % #??##?????# ! | | # # ######?????#####+#####???#??# | | # # #??????????# *#?#????? """ """ | | # # #???????##?# ^ ^ #??#???# """ """ | | # """ + #??????????# ! """ #??????# """ """ | | # """ # #??#???????#[^ """ #??????# | | # """ # #??????????# """ #??????######### | | # # #??????????# """ ############### | | # #####??????????# = ^ + | | # #??????????????# ############### | +----------------------------------------------------+ Best States ------------- Heat Dissipation 39 Energy Generation 14 Energy Capacity 160 Matter Stores 300 Matter Capacity 300 Sight Range 16 Terrain Scan Range 16 Terrain Scan Density 10 Core Shielding 20 Evasion (%) 55 Item Schematics ----------------- None Robot Schematics ------------------ None Fabricated ------------ Nothing Alien Tech Used ----------------- None Achievements -------------- None Challenges ------------ None Game ------ Seed FactoryReinforcedSink Manual? 0 Play Time 00:15:20 Cumulative 141.8 hours Start 2022.11.14 @ 01:43:55 End 2022.11.14 @ 01:56:49 Sessions 1 Manual Loads 0 Difficulty Rogue Special Mode None Game No. 174 Rogue 174 Adventurer 0 Explorer 0 Win Type - Total 1 Types 1/0/0/0/0/0/0/0/0 Lore% 74 Gallery% 75 Achievement% 57 Wizard Run 0 Options --------- ASCII 0 Keyboard 0 Movement Numpad Keybinds 0 Fullscreen 2 Font 18/SmallcapsGlow Map View 76x50 Tactical HUD 1 Map Filters NONE Filters NONE Steam 1 RUN: 01db9ff1-f6b1-416e-bc16-f12f00e83f3d